bitfinex/quotes_ETHUSD_20260131
["timestamp","ask_amount","ask_price","bid_price","bid_amount"]
[1769848763872,16.59412679,2641.7,2640.0,0.94696969]
[1769848764654,3.78558449,2641.7,2640.0,0.94696969]
[1769848764854,0.56436368,2641.6,2640.1,13.39347709]
[1769848765078,0.94636029,2641.7,2640.1,13.40488914]
[1769848765581,1.54631482,2641.9,2640.2,13.865749]
[1769848765741,1.54631482,2641.9,2640.3,12.93026309]
[1769848765946,14.35485712,2641.9,2640.2,0.94689796]
[1769848766158,13.34168472,2641.8,2640.3,0.52205279]
[1769848766374,0.53314242,2641.8,2640.3,0.52205279]
[1769848767050,13.34168472,2641.8,2640.2,0.94689796]
[1769848767251,13.35309677,2641.8,2640.2,0.94689796]
[1769848767580,12.8085423,2641.6,2640.1,0.94691057]
[1769848767767,12.8085423,2641.6,2639.9,0.94698386]
[1769848767970,12.8085423,2641.4,2640.0,0.94696108]
[1769848768347,1.37549026,2641.5,2640.0,0.94696108]
[1769848768549,0.001,2641.5,2640.0,0.94696108]
[1769848769575,0.001,2641.5,2640.2,0.94689796]
[1769848770087,0.001,2641.5,2640.3,0.01141205]
[1769848770586,0.001,2641.5,2640.2,1.73989796]
[1769848770790,0.001,2641.5,2640.1,0.9469074]
[1769848771080,0.001,2641.5,2640.1,1.42037921]
[1769848771501,0.001,2641.5,2640.1,14.33923025]
[1769848771851,0.001,2641.5,2640.2,12.93026309]
[1769848772080,0.94635157,2641.8,2640.2,12.93026309]
[1769848772081,0.94012168,2641.8,2640.2,12.93026309]
[1769848772247,0.6,2641.9,2640.5,12.93026309]
[1769848772458,0.6,2641.9,2640.7,0.01141205]
[1769848773057,1.54629834,2641.9,2640.6,2.08602631]
[1769848773253,0.6,2641.9,2640.6,0.793]
[1769848773453,0.6,2641.9,2640.7,12.93026309]
[1769848773754,0.6,2641.9,2640.8,0.94668282]
[1769848774161,0.94596639,2642.8,2640.9,12.93026309]
[1769848774386,0.3783804,2642.8,2641.3,0.01141205]
[1769848774583,0.3783804,2642.8,2641.2,12.91885104]
[1769848774791,0.3783804,2642.8,2641.1,0.01141205]
[1769848775180,0.94688565,2643.1,2641.5,0.01141205]
[1769848775381,0.001,2643.1,2641.9,0.01141205]
[1769848775556,0.001,2643.1,2641.9,0.80441205]
[1769848775758,0.94546554,2644.2,2642.3,0.01141205]
[1769848775979,1.753687,2644.1,2642.3,0.48678507]
[1769848776391,1.753687,2644.1,2642.5,0.01141205]
[1769848777688,0.001,2644.3,2642.5,0.01141205]
[1769848777872,0.001,2644.3,2642.6,0.94603799]
[1769848778662,0.001,2644.3,2642.6,0.95745004]
[1769848778894,13.33003101,2644.3,2642.6,0.94603799]
[1769848779103,13.32903101,2644.1,2642.7,0.473019]
[1769848779259,1.3330031,2644.2,2642.7,0.473019]
[1769848779459,0.001,2644.3,2642.7,0.473019]
[1769848779900,0.001,2644.3,2642.8,0.94596639]
[1769848780261,13.48701561,2644.2,2642.6,0.94601446]
[1769848780462,13.48701561,2644.2,2642.7,0.94598817]
[1769848780730,13.47560356,2644.2,2642.4,0.0011]
[1769848780904,13.47560356,2643.6,2642.4,0.0011]
[1769848781061,13.47560356,2643.4,2642.4,0.0011]
[1769848781981,0.94578746,2643.3,2642.4,0.0011]
[1769848782301,14.42139102,2643.3,2642.1,0.0011]
[1769848782481,15.29605597,2643.2,2642.1,0.0011]
[1769848784069,0.94585902,2643.1,2642.1,0.0011]
[1769848784275,0.94560859,2643.8,2642.1,0.0011]
[1769848784468,14.42121215,2643.8,2642.1,0.0011]
[1769848784968,14.42121215,2643.8,2642.2,0.01141205]
[1769848785495,16.24157556,2643.8,2642.2,0.01141205]
[1769848786269,16.24157556,2643.8,2642.3,0.9461454]
[1769848787120,16.24157556,2643.8,2642.1,0.0011]
[1769848787416,16.24157556,2643.8,2642.2,0.94617789]
[1769848787806,16.24157556,2643.8,2642.1,0.0011]
[1769848787983,15.87670331,2643.7,2642.1,0.0011]
[1769848788189,13.47560356,2643.5,2642.1,0.0011]
[1769848790743,13.47560356,2643.3,2642.1,0.0011]
[1769848791028,0.94575168,2643.4,2642.1,0.01251205]
[1769848791317,14.42135524,2643.4,2642.1,0.0011]
[1769848791520,15.29603976,2643.3,2642.1,0.0011]
[1769848791688,1.8204362,2643.3,2642.1,0.0011]
[1769848791890,0.94575168,2643.4,2642.1,0.0011]
[1769848792191,14.42135524,2643.4,2642.1,0.0011]
[1769848794928,14.42135524,2643.4,2642.3,0.0011]
[1769848795110,0.001,2643.1,2642.3,0.0011]
[1769848795506,13.47660356,2643.1,2642.3,0.0011]
[1769848795707,1.34766036,2643.0,2642.3,0.0011]
[1769848796907,1.34766036,2643.0,2641.1,0.0011]
[1769848796908,13.47560356,2642.5,2641.1,0.0011]
[1769848797106,13.47560356,2642.1,2641.1,0.0011]
[1769848797901,13.47560356,2641.8,2640.1,1.42038108]
[1769848798101,13.47560356,2641.8,2640.1,0.94690927]
[1769848798318,0.01141205,2641.7,2640.1,0.94690927]
[1769848798633,13.47560356,2641.6,2640.0,0.94694429]
[1769848799337,13.47560356,2641.6,2639.8,0.0011]
[1769848799338,13.47560356,2641.4,2639.8,0.0011]
[1769848800231,0.01141205,2641.1,2639.8,0.0011]
[1769848800411,13.47560356,2641.0,2639.8,0.0011]
[1769848800613,13.47560356,2640.8,2639.8,0.0011]
[1769848801217,14.42232223,2640.7,2639.8,0.0011]
[1769848801533,0.94671867,2640.7,2639.8,0.0011]
[1769848803438,3.78635842,2641.1,2639.8,0.0011]
[1769848803640,1.82085373,2641.0,2639.8,0.0011]
[1769848804319,13.47560356,2640.9,2639.8,0.0011]
[1769848805471,0.94668282,2640.8,2639.8,0.0011]
[1769848805610,0.94645674,2641.5,2640.0,12.81484634]
[1769848805805,0.94628865,2641.9,2640.1,12.82625839]
[1769848806010,0.94628865,2641.9,2640.2,1.28262584]
[1769848806245,13.48701561,2641.8,2639.8,0.0011]
[1769848806428,13.47560356,2641.5,2639.8,0.0011]
[1769848807509,0.94628865,2641.9,2640.0,12.6241522]
[1769848807714,0.94628865,2641.9,2640.1,0.01141205]
[1769848808054,0.94628865,2641.9,2640.1,13.90026188]
[1769848808224,13.67021173,2641.9,2640.1,1.26469763]
[1769848808548,13.67021173,2641.9,2640.3,0.0011]
[1769848808713,0.94628865,2641.9,2640.3,12.6252522]
[1769848808914,0.94628865,2641.9,2640.4,12.63556425]
[1769848809216,0.94628865,2641.9,2640.5,1.26366642]
[1769848809416,0.94650361,2641.3,2640.3,0.0011]
[1769848809623,13.67042669,2641.3,2640.3,0.0011]
[1769848809942,12.72392308,2640.9,2640.0,0.0011]
[1769848810114,1.28494556,2640.8,2640.0,0.0011]
[1769848810315,1.27353351,2640.8,2640.0,0.0011]
[1769848810643,1.28494556,2640.8,2640.0,0.0011]
[1769848811024,1.27353351,2640.8,2640.0,0.0011]
[1769848811247,0.94650361,2641.3,2640.0,0.0011]
[1769848811445,12.73533513,2641.1,2640.0,0.0011]
[1769848811614,0.01141205,2640.7,2640.0,0.0011]
[1769848811818,12.73533513,2640.7,2639.8,0.0011]
[1769848812115,0.01141205,2640.5,2639.8,0.0011]
[1769848812615,13.99745659,2640.6,2639.5,0.0011]
[1769848813047,1.27353351,2640.6,2639.5,0.0011]
[1769848813340,12.72392308,2641.1,2639.5,0.0011]
[1769848813647,0.01141205,2640.7,2639.5,0.0011]
[1769848813819,0.01141205,2640.5,2639.5,0.0011]
[1769848814022,12.72392308,2640.5,2639.5,0.0011]
[1769848814248,0.01141205,2640.3,2639.5,0.0011]
[1769848814420,0.01141205,2640.1,2639.0,0.0011]
[1769848814619,0.01141205,2640.3,2639.0,0.0011]
[1769848814863,0.6,2640.1,2639.0,0.0011]
[1769848815351,13.32392308,2640.1,2639.0,0.0011]
[1769848815663,0.94700556,2639.9,2639.0,0.0011]
[1769848816318,13.67092864,2639.9,2639.0,0.0011]
[1769848816515,13.67092864,2639.9,2637.3,0.01141205]
[1769848816516,12.72392308,2639.8,2637.3,0.01141205]
[1769848816715,12.72392308,2639.8,2636.2,1.83127872]
[1769848816716,12.72392308,2637.3,2633.3,0.01141205]
[1769848816921,12.72392308,2637.3,2632.4,0.01141205]
[1769848816922,12.7220127,2634.9,2632.4,0.01141205]
[1769848817123,0.19789827,2635.0,2632.4,0.01141205]
[1769848817124,0.01141205,2633.1,2632.5,0.01141205]
[1769848817350,3.98815201,2633.4,2632.2,0.01141205]
[1769848817556,0.94939552,2633.3,2632.5,0.01141205]
[1769848817854,0.94939552,2633.3,2632.4,0.01141205]
[1769848817855,0.89702899,2633.3,2632.4,0.01141205]
[1769848818065,0.47469119,2633.2,2632.1,0.01141205]
[1769848818353,0.47469119,2633.2,2632.8,0.01141205]
[1769848818586,0.89702899,2633.3,2632.4,0.01141205]
[1769848818864,0.94919887,2633.8,2633.0,0.01141205]
[1769848819027,0.94919887,2633.8,2632.8,0.01141205]
[1769848819351,0.94919887,2633.8,2632.6,0.01141205]
[1769848819560,16.71092308,2633.7,2631.9,0.01141205]
[1769848819762,12.72392308,2633.4,2632.0,0.01141205]
[1769848819930,12.72392308,2633.4,2631.7,0.01141205]
[1769848820256,12.72392308,2633.4,2632.1,0.01141205]
[1769848820455,12.72392308,2633.4,2631.9,0.01141205]
[1769848820660,1.67109231,2633.3,2631.9,0.01141205]
[1769848820958,1.67109231,2633.3,2632.3,0.01141205]
[1769848821131,0.50089603,2633.7,2632.5,0.01141205]
[1769848821335,0.50089603,2633.7,2632.9,0.01141205]
[1769848821554,0.94919887,2633.8,2633.0,0.01141205]
[1769848821735,0.94919887,2633.8,2632.8,0.0011]
[1769848822158,0.94919887,2633.8,2631.7,0.0011]
[1769848822322,0.94919887,2633.8,2632.7,0.01141205]
[1769848822323,0.50089603,2633.7,2632.7,0.01141205]
[1769848822527,0.94919887,2633.8,2632.9,0.01141205]
[1769848822727,0.94919887,2633.8,2632.5,0.01141205]
[1769848822938,0.94919887,2633.8,2632.9,0.01141205]
[1769848823157,0.94919887,2633.8,2632.5,0.01141205]
[1769848823858,0.94919887,2633.8,2632.9,0.01141205]
[1769848824061,0.50089603,2633.7,2632.5,0.01141205]
[1769848824730,0.50089603,2633.7,2632.3,0.01141205]
[1769848825461,0.50089603,2633.7,2632.5,0.01141205]
[1769848825632,0.94927095,2633.6,2632.0,0.01141205]
[1769848825831,0.94927095,2633.6,2632.2,0.01141205]
[1769848826037,0.52472508,2633.5,2632.2,0.01141205]
[1769848826464,0.94927095,2633.6,2632.0,0.01141205]
[1769848826465,0.94927095,2633.6,2632.7,0.01141205]
[1769848826760,0.94927095,2633.6,2632.5,0.01141205]
[1769848827263,1.21222901,2633.9,2632.9,0.01141205]
[1769848827442,1.71311462,2633.9,2632.9,0.01141205]
[1769848828361,1.21222901,2633.9,2633.1,0.01141205]
[1769848828861,3.79538788,2634.8,2634.3,0.01141205]
[1769848828862,0.26058604,2634.8,2634.3,0.01141205]
[1769848829031,0.26058604,2634.8,2634.1,0.01141205]
[1769848829231,1.20979863,2636.0,2634.3,0.01141205]
[1769848829460,13.22426279,2635.9,2634.0,0.01141205]
[1769848829654,0.50033971,2635.9,2634.4,0.01141205]
[1769848829860,0.50033971,2635.9,2634.9,0.01141205]
[1769848830170,0.50033971,2635.9,2634.7,0.01141205]
[1769848830171,0.94847864,2635.8,2634.7,0.01141205]
[1769848830462,1.87828207,2635.8,2634.4,0.01141205]
[1769848830663,1.87828207,2635.8,2634.6,0.01141205]
[1769848830962,1.87828207,2635.8,2632.7,0.01141205]
[1769848831163,0.2335703,2635.7,2634.2,0.01141205]
[1769848831353,0.85082342,2635.7,2634.2,0.01141205]
[1769848831861,0.61725312,2635.7,2634.2,0.01141205]
[1769848832084,1.18212091,2635.6,2633.7,1.27496848]
[1769848832253,12.95749338,2635.4,2633.2,0.01141205]
[1769848832455,12.95749338,2635.4,2633.8,0.01141205]
[1769848833076,12.95749338,2635.4,2633.2,0.01141205]
[1769848833288,1.29574934,2635.3,2633.6,0.01141205]
[1769848833484,1.29574934,2635.3,2634.2,0.01141205]
[1769848833667,0.001,2635.4,2634.0,0.01141205]
[1769848834043,0.2335703,2635.3,2633.6,0.01141205]
[1769848835155,0.2335703,2635.3,2633.8,0.01141205]
[1769848835764,0.94962259,2635.4,2634.0,0.01141205]
[1769848836072,0.94869459,2635.2,2634.0,0.01141205]
[1769848836374,0.94869459,2635.2,2634.2,0.01141205]
[1769848836563,0.94869459,2635.2,2633.8,0.01141205]
[1769848836765,0.94869459,2635.2,2634.2,0.01141205]
[1769848836943,0.94869459,2635.2,2634.0,0.01141205]
[1769848837140,1.97730009,2635.2,2634.0,0.01141205]
[1769848837345,13.52864329,2635.0,2630.3,0.96184729]
[1769848837583,15.17474118,2632.9,2632.1,0.01141205]
[1769848837885,13.29507299,2631.6,2629.9,0.01141205]
[1769848838096,13.29507299,2631.2,2629.2,0.01141205]
[1769848838278,13.29507299,2631.2,2629.4,0.01141205]
[1769848838279,1.65808767,2631.1,2629.4,0.01141205]
[1769848838579,1.65808767,2631.1,2629.6,0.01141205]
[1769848838580,1.42451737,2631.1,2629.6,0.01141205]
[1769848838883,1.42451737,2631.1,2629.8,0.01141205]
[1769848839556,1.42451737,2631.1,2629.1,0.0187246]
[1769848839557,13.05624207,2631.0,2629.1,0.03013665]
[1769848839763,13.05624207,2630.8,2629.2,0.01141205]
[1769848840157,12.82267177,2629.3,2626.4,0.01141205]
[1769848840349,13.00961734,2626.9,2625.8,1.34173983]
[1769848840659,13.00961734,2626.9,2623.8,0.00676652]
[1769848840660,12.82267177,2626.7,2625.2,0.01141205]
[1769848840992,12.82267177,2626.7,2623.7,0.03013665]
[1769848840993,12.82267177,2625.1,2623.6,0.01141205]
[1769848841151,12.82267177,2624.3,2622.8,0.0114314]
[1769848841354,12.82267177,2623.9,2621.0,0.00968272]
[1769848841558,12.82267177,2623.5,2621.0,0.00968272]
[1769848841771,12.82267177,2622.4,2621.0,0.00968272]
[1769848841989,0.2450017,2623.2,2620.4,0.01035944]
[1769848841990,0.2335703,2621.9,2620.4,0.01035944]
[1769848842270,0.0114314,2622.0,2620.4,0.01035944]
[1769848842271,1.70613505,2622.0,2621.3,0.01144535]
[1769848842470,1.49518653,2623.1,2621.8,0.01144535]
[1769848842675,1.49518653,2623.1,2622.2,0.01144535]
[1769848842852,1.16802172,2623.1,2620.7,13.57422858]
[1769848843052,1.16802172,2623.1,2622.3,0.01144535]
[1769848843272,1.16802172,2623.1,2620.4,0.96440308]
[1769848843273,12.82267177,2623.0,2620.4,0.96440308]
[1769848843488,1.39906935,2622.9,2620.4,0.01035944]
[1769848843781,1.62882787,2623.1,2620.4,0.01035944]
[1769848843782,1.16802172,2623.1,2620.5,14.52824498]
[1769848844002,1.16802172,2623.1,2620.5,13.58567393]
[1769848844148,0.01144535,2622.8,2620.4,0.01035944]
[1769848844349,0.01144535,2622.9,2620.5,0.96545301]
[1769848844588,2.1211017,2623.1,2620.9,0.01144535]
[1769848844785,2.1211017,2623.1,2620.6,0.47919465]
[1769848844786,0.01144535,2622.5,2620.6,0.47919465]
[1769848844986,0.01144535,2621.5,2620.4,0.01035944]
[1769848845288,0.01144535,2621.7,2620.4,0.01035944]
[1769848845289,0.01144623,2621.3,2620.4,0.01035944]
[1769848845494,0.01144623,2620.5,2618.5,1.46349862]
[1769848845664,0.01144623,2619.5,2618.5,1.46349862]
[1769848845997,0.01144623,2619.5,2617.6,0.17437484]
[1769848845998,0.01144623,2617.7,2616.1,1.48166942]
[1769848846156,0.19896711,2615.6,2613.5,6.2372947]
[1769848846355,0.19896711,2615.6,2613.3,0.01145869]
[1769848846356,0.01145869,2617.3,2614.5,0.01145869]
[1769848846581,0.01145869,2617.3,2614.1,0.01145869]
[1769848846582,12.83413046,2617.1,2614.1,0.01145869]
[1769848846792,0.01145869,2615.8,2613.6,0.62372947]
[1769848846976,12.82267177,2616.9,2615.2,0.01145869]
[1769848847153,12.82267177,2616.9,2614.5,0.96766581]
[1769848847354,12.82267177,2616.9,2614.1,0.01146767]
[1769848847355,0.87497284,2614.4,2614.1,0.01146767]
[1769848847574,0.01145869,2615.2,2613.2,0.0702834]
[1769848847575,12.82267177,2615.2,2613.2,0.0702834]
[1769848847781,10.371,2615.1,2612.3,0.01294505]
[1769848847992,0.01146767,2616.7,2612.0,0.04146767]
[1769848847993,0.01146767,2614.2,2612.0,0.03]
[1769848848295,0.01146767,2614.2,2611.3,0.01148039]
[1769848848296,0.95646185,2613.8,2611.3,0.01148039]
[1769848848492,0.95646185,2613.8,2610.3,0.25203732]
[1769848848493,0.01148039,2611.8,2610.3,0.25203732]
[1769848848674,0.01148039,2611.8,2607.5,0.0187246]
[1769848848675,0.01148039,2610.9,2608.8,1.39628375]
[1769848848854,0.01148039,2612.4,2609.7,0.01148039]
[1769848849185,0.01148853,2612.7,2610.0,0.01148853]
[1769848849385,0.01148853,2612.2,2609.4,0.798]
[1769848849565,17.30274819,2612.1,2608.5,6.7445947]
[1769848849767,1.27924452,2612.9,2608.5,6.7445947]
[1769848849768,1.28026921,2616.8,2614.5,0.71803125]
[1769848849966,0.01148853,2616.3,2615.5,0.16290451]
[1769848850291,2.24510245,2618.8,2617.9,0.01148853]
[1769848850493,2.24510245,2618.8,2616.8,0.01148853]
[1769848850494,0.19910392,2619.8,2618.5,0.01148853]
[1769848850816,14.0,2620.4,2616.9,1.08038372]
[1769848850956,0.19897031,2621.6,2619.0,0.01148853]
[1769848850957,14.486955,2621.3,2619.0,0.01148853]
[1769848851155,14.486955,2621.3,2618.4,14.75464953]
[1769848851156,14.0,2620.0,2616.0,0.9556544]
[1769848851356,14.0,2620.0,2615.5,0.16290451]
[1769848851357,0.01148853,2620.1,2615.6,3.82308082]
[1769848851358,0.01148853,2618.0,2615.6,3.82308082]
[1769848851555,0.01148853,2618.2,2612.1,3.82824088]
[1769848851556,14.0,2615.0,2612.1,3.82824088]
[1769848851781,0.01148853,2615.1,2610.5,0.81048853]
[1769848851782,0.01148853,2612.7,2610.5,9.44987692]
[1769848851997,0.01148853,2614.5,2611.8,0.085715]
[1769848852177,14.0,2614.2,2611.8,0.085715]
[1769848852355,0.01148853,2611.1,2609.6,0.25177483]
[1769848852555,14.01148853,2613.0,2609.4,6.73310617]
[1769848852755,2.06666353,2612.3,2610.2,6.7445947]
[1769848852986,0.01148853,2612.2,2609.8,0.01148853]
[1769848853192,14.0,2613.0,2609.8,0.01148853]
[1769848853193,0.01148985,2613.6,2611.4,6.73310617]
[1769848853487,14.95595846,2615.2,2613.1,0.01148985]
[1769848853709,14.95595846,2615.2,2613.5,0.01148985]
[1769848853710,2.06666353,2615.1,2613.5,0.01148985]
[1769848853991,2.06666353,2615.2,2612.4,0.01148985]
[1769848854199,0.01148985,2617.1,2615.1,6.73310617]
[1769848854403,0.01148985,2618.0,2613.5,0.01148985]
[1769848854404,0.01148985,2618.3,2616.4,0.7990574]
[1769848854586,0.29120102,2620.6,2617.2,0.01148985]
[1769848854793,0.01148985,2620.2,2617.3,0.96564221]
[1769848854963,0.29120102,2620.6,2618.9,0.01148985]
[1769848855167,0.29120102,2620.5,2619.9,0.01148985]
[1769848855405,0.29120102,2621.6,2620.4,0.01148985]
[1769848855580,0.29120102,2621.6,2621.2,0.01148985]
[1769848855776,0.29120102,2621.6,2621.3,0.01148985]
[1769848855997,13.77581596,2622.9,2619.5,6.73310617]
[1769848856299,0.01148985,2622.1,2619.8,0.01148985]
[1769848856598,0.01148985,2622.4,2620.1,0.95416033]
[1769848856786,0.27971117,2622.6,2620.4,0.01148985]
[1769848856984,0.29120102,2622.8,2620.4,0.01148985]
[1769848857304,0.01148985,2622.3,2620.1,0.95415966]
[1769848857597,0.01148985,2622.3,2619.2,0.01148985]
[1769848857598,0.01148985,2621.6,2619.2,0.01148985]
[1769848857903,0.01148985,2622.6,2620.2,0.95412117]
[1769848857904,0.27971117,2622.2,2620.2,0.95412117]
[1769848858201,0.27971117,2622.5,2620.6,0.01148985]
[1769848858509,0.27971117,2622.9,2621.2,0.01148985]
[1769848858720,0.01148985,2622.7,2619.7,0.01148985]
[1769848858868,0.01148985,2622.6,2620.3,0.01148985]
[1769848859063,0.01148985,2622.9,2619.7,0.01148985]
[1769848859064,0.01148985,2622.2,2619.7,0.01148985]
[1769848859296,0.1024,2622.8,2619.7,0.01148985]
[1769848859297,0.01148985,2622.5,2620.1,0.01148985]
[1769848859497,0.27971117,2622.7,2620.3,0.01148985]
[1769848859674,0.27971117,2622.7,2619.9,0.01148985]
[1769848859675,0.01148985,2622.4,2619.9,0.01148985]
[1769848859875,0.01148985,2622.6,2620.3,0.95408899]
[1769848860080,0.95332519,2622.4,2620.4,0.01148985]
[1769848860284,0.95332519,2622.4,2619.5,3.81739249]
[1769848860484,0.01148985,2622.2,2619.6,0.01148985]
[1769848860696,0.27971117,2622.3,2620.0,0.01148985]
[1769848860880,0.01148985,2622.1,2619.6,3.81731666]
[1769848861095,0.79698372,2622.3,2620.0,0.95418936]
[1769848861310,0.01148985,2622.1,2619.9,0.95421923]
[1769848861499,0.27971117,2622.2,2620.1,0.01148985]
[1769848861704,13.77545198,2624.0,2621.0,0.01148985]
[1769848861866,0.01148985,2622.1,2620.0,0.9541804]
[1769848862088,0.01148985,2622.1,2619.5,0.01148985]
[1769848862089,0.01148985,2621.2,2619.1,0.47009844]
[1769848862289,0.95368886,2621.4,2618.8,0.95463571]
[1769848862290,0.01148985,2621.1,2618.8,0.96612556]
[1769848862520,0.01148985,2620.9,2618.9,0.47731786]
[1769848862723,3.81475547,2621.6,2618.9,0.47731786]
[1769848862724,0.95343427,2622.1,2619.3,0.01148985]
[1769848862897,0.95343427,2622.1,2619.9,0.01148985]
[1769848863095,0.95343427,2622.1,2620.1,0.01148985]
[1769848863631,0.01148985,2621.6,2618.8,0.95463571]
[1769848863916,0.01148985,2621.5,2619.1,0.01148985]
[1769848864138,0.9535984,2621.7,2619.2,0.95448992]
[1769848864288,0.01148985,2620.9,2618.3,0.01148985]
[1769848864491,0.01148985,2620.3,2617.7,0.01148985]
[1769848864714,0.01148985,2620.6,2618.7,0.95466826]
[1769848864915,0.00766985,2620.6,2618.9,0.95458849]
[1769848865113,0.01148985,2620.7,2618.6,0.95467924]
[1769848865320,0.01148985,2620.6,2618.5,0.95471547]
[1769848865491,0.01148985,2620.6,2618.4,0.95476313]
[1769848865492,0.01148985,2620.4,2618.4,0.95476313]
[1769848865691,0.01148985,2620.6,2618.5,0.95473991]
[1769848865887,0.01148985,2620.6,2618.4,0.48889333]
[1769848866123,0.9539436,2620.7,2618.5,3.8189584]
[1769848866324,0.9539436,2620.7,2618.6,0.01148985]
[1769848866628,0.9539436,2620.7,2619.0,0.01148985]
[1769848866824,13.77644013,2621.2,2619.3,0.01148985]
[1769848866988,13.77644013,2621.2,2618.6,0.11388985]
[1769848866989,13.42390177,2620.6,2618.9,0.01148985]
[1769848867192,1.75913633,2621.1,2620.1,0.01148985]
[1769848867392,14.37752445,2621.6,2620.5,0.01148985]
[1769848867794,13.42390177,2621.6,2620.6,0.01148985]
[1769848868015,14.37711792,2622.7,2621.4,0.01148985]
[1769848868213,14.75955183,2622.7,2620.8,0.9653911]
[1769848868422,14.75955183,2622.7,2620.9,0.01148985]
[1769848868625,14.75955183,2622.7,2620.7,0.01148985]
[1769848868797,1.85724011,2622.6,2621.1,0.01148985]
[1769848868999,1.85724011,2622.6,2621.2,0.01148985]
[1769848869896,1.85724011,2622.6,2620.8,0.01148985]
[1769848870532,0.95328884,2622.5,2620.7,0.01148985]
[1769848870709,0.66236843,2622.4,2620.9,0.01148985]
[1769848871033,0.66236843,2622.4,2620.8,0.01148985]
[1769848871217,0.66236843,2622.4,2620.8,0.9653937]
[1769848871422,0.66236843,2622.4,2621.0,0.01148985]
[1769848871624,0.66236843,2622.4,2620.8,0.96539183]
[1769848871825,0.66236843,2622.4,2620.8,0.01148985]
[1769848872044,0.66236843,2622.4,2618.3,3.987]
[1769848872045,0.66236843,2622.4,2619.4,0.01148985]
[1769848872200,0.66236843,2622.4,2620.5,0.01148985]
[1769848872400,0.95336155,2622.3,2620.4,0.9540485]
[1769848872600,4.47581464,2622.4,2620.5,0.96549677]
[1769848872601,1.61570714,2622.4,2620.5,0.96549677]
[1769848872832,3.81177005,2623.5,2621.3,0.01148985]
[1769848873030,13.43539162,2622.8,2620.5,0.95400692]
[1769848873358,0.01148985,2622.6,2620.5,0.95400692]
[1769848874034,0.11388985,2623.4,2620.5,0.95400692]
[1769848874035,13.43539162,2623.4,2620.6,0.01148985]
[1769848874251,0.01148985,2622.5,2620.5,0.95400692]
[1769848874401,0.01148985,2622.8,2620.5,0.85861382]
[1769848874604,0.01148985,2625.0,2623.0,0.01148985]
[1769848874806,0.01148985,2626.3,2623.7,1.92647812]
[1769848874807,0.01148985,2625.7,2623.7,1.92647812]
[1769848875029,0.0187246,2626.4,2624.0,6.73310617]
[1769848875237,0.970605,2626.4,2624.9,0.01148985]
[1769848875405,0.970605,2626.4,2625.1,0.01148985]
[1769848875606,0.97059943,2626.4,2625.1,0.01148985]
[1769848875948,0.95104043,2628.7,2626.7,0.01148985]
[1769848876108,14.3749191,2628.8,2627.4,0.01148985]
[1769848876303,1.34239018,2628.7,2627.5,0.01148985]
[1769848876527,1.12703614,2629.0,2627.2,0.01148985]
[1769848876855,1.12704986,2629.0,2627.3,0.9515392]
[1769848877458,1.12704986,2629.0,2627.4,0.47578593]
[1769848877613,0.1760995,2629.0,2627.3,0.96303119]
[1769848877819,0.01148985,2630.8,2627.6,0.01148985]
[1769848877820,0.95071582,2629.6,2627.6,0.01148985]
[1769848878038,0.95071582,2629.6,2627.3,0.96303119]
[1769848878039,0.01148985,2629.1,2627.3,0.95154134]
[1769848878220,0.01148985,2629.3,2627.3,0.95154134]
[1769848878547,0.95085957,2629.2,2627.1,0.95161965]
[1769848878841,0.01148985,2628.7,2627.0,0.95164732]
[1769848879046,0.01148985,2628.7,2626.9,0.95167177]
[1769848879341,0.01148985,2628.8,2626.5,0.01148985]
[1769848879546,0.01148985,2628.9,2627.0,0.95163817]
[1769848879843,0.47657877,2629.1,2627.0,0.95163817]
[1769848880045,13.43539162,2628.4,2626.6,0.95177988]
[1769848880226,0.01148985,2628.0,2626.4,0.95184432]
[1769848880424,0.95118517,2628.3,2625.8,0.01148985]
[1769848880624,0.01148985,2627.3,2625.6,0.95215747]
[1769848880940,13.43539162,2626.7,2623.9,0.01148985]
[1769848881137,13.43539162,2626.7,2625.0,3.80941772]
[1769848881138,14.76744093,2626.7,2625.0,3.80941772]
[1769848881443,13.42390177,2627.6,2625.6,0.9636499]
[1769848882016,14.37503647,2628.5,2626.2,0.01148985]
[1769848882219,14.37503647,2628.5,2626.4,0.01148985]
[1769848882445,14.37503647,2628.5,2626.2,0.6744596]
[1769848882446,0.01148985,2628.2,2626.2,0.6744596]
[1769848882654,0.01148985,2627.6,2626.4,0.95186792]
[1769848882958,0.001,2626.3,2623.9,3.810996]
[1769848883120,0.001,2626.3,2625.1,0.95233567]
[1769848883318,0.001,2626.3,2624.1,0.01148985]
[1769848883319,13.42390177,2626.2,2624.1,0.01148985]
[1769848883628,9.97842021,2629.0,2626.8,7.95897409]
[1769848883838,9.97842021,2629.0,2627.1,6.74459602]
[1769848883839,1.48513401,2629.0,2627.1,6.74459602]
[1769848884130,0.01148985,2629.6,2627.2,0.01148985]
[1769848884487,0.01148985,2629.6,2627.1,6.73310617]
[1769848884488,0.01148985,2628.9,2626.9,0.9516921]
[1769848884763,0.01148985,2629.2,2626.9,0.9516921]
[1769848885076,0.01148985,2629.0,2627.0,0.47699504]
[1769848885219,0.01148985,2628.5,2626.9,0.9516921]
[1769848885413,13.42390177,2628.9,2626.9,0.9516921]
[1769848885651,13.43539162,2628.7,2626.9,0.9516921]
[1769848885824,1.34353916,2628.6,2626.9,0.9516921]
[1769848886562,1.34353916,2628.6,2626.8,3.81825828]
[1769848886720,13.42390177,2628.7,2626.8,3.81825828]
[1769848886917,13.42390177,2628.7,2626.8,3.80676843]
[1769848887164,13.42390177,2628.7,2626.8,3.81825828]
[1769848887651,13.42390177,2628.7,2627.0,0.01148985]
[1769848888028,13.42390177,2629.7,2627.3,0.01148985]
[1769848888364,14.76629195,2629.6,2627.4,0.01148985]
[1769848888652,14.76629195,2629.6,2627.6,0.01148985]
[1769848888952,0.25863102,2631.0,2628.9,0.01148985]
[1769848889151,0.25863102,2631.0,2629.5,0.01148985]
[1769848889354,0.0187246,2631.8,2630.7,0.01148985]
[1769848889650,0.0187246,2631.8,2630.9,0.01148985]
[1769848889849,0.0187246,2631.8,2631.3,0.01148985]
[1769848890051,0.0187246,2631.8,2631.1,0.01148985]
[1769848890359,0.0187246,2631.8,2631.3,0.01148985]
[1769848890521,0.0187246,2631.8,2631.3,0.95009315]
[1769848890718,0.0187246,2631.8,2631.3,0.961583]
[1769848891051,0.798,2632.7,2631.7,0.01148985]
[1769848891355,13.42390177,2633.2,2632.3,0.01985079]
[1769848891649,1.34239018,2633.1,2632.3,0.01985079]
[1769848892201,13.42390177,2632.9,2630.3,0.96192161]
[1769848892477,1.34239018,2633.1,2630.7,0.01148985]
[1769848892478,13.42390177,2632.5,2630.7,0.01148985]
[1769848892636,13.42390177,2632.3,2630.8,0.96177113]
[1769848893069,1.34239018,2633.1,2631.5,0.01148985]
[1769848893284,1.34239018,2633.1,2631.3,0.01148985]
[1769848893285,13.42390177,2633.0,2630.8,0.96177113]
[1769848893436,13.42390177,2633.0,2631.0,0.01148985]